bitfinex-derivatives/quotes_SOLF0:USTF0_20241024
["timestamp","ask_amount","ask_price","bid_price","bid_amount"]
[1729732403090,13.91376436,173.41,173.31,18.73376436]
[1729732403498,2.8862,173.4,173.31,18.73376436]
[1729732403701,13.91376436,173.41,173.31,13.91376436]
[1729732403901,2.8865,173.38,173.34,2.8871]
[1729732404303,13.91376436,173.41,173.34,2.8871]
[1729732404604,13.91376436,173.39,173.31,4.82]
[1729732404798,13.91376436,173.39,173.3,13.91376436]
[1729732405001,13.91376436,173.37,173.3,4.82]
[1729732405491,13.91376436,173.37,173.27,17.62266436]
[1729732405492,13.91376436,173.37,173.32,2.8874]
[1729732405697,13.91376436,173.37,173.29,4.82]
[1729732405894,13.91376436,173.37,173.32,2.8875]
[1729732406095,21.62026436,173.39,173.28,4.82]
[1729732406295,16.80026436,173.39,173.28,4.82]
[1729732406496,2.8865,173.39,173.34,2.8872]
[1729732406701,2.8865,173.39,173.3,13.91376436]
[1729732406702,2.8866,173.38,173.3,13.91376436]
[1729732407204,18.73376436,173.41,173.34,2.8872]
[1729732407402,2.8864,173.39,173.3,13.91376436]
[1729732407706,2.8864,173.39,173.34,2.8872]
[1729732407894,2.8864,173.39,173.32,4.82]
[1729732408600,2.8864,173.39,173.34,2.8871]
[1729732409201,18.73376436,173.42,173.32,4.82]
[1729732409404,16.79996436,173.4,173.35,2.887]
[1729732409603,13.91376436,173.37,173.27,3.7089]
[1729732410405,13.91376436,173.37,173.28,13.91376436]
[1729732410707,13.91376436,173.37,173.34,2.8871]
[1729732411004,13.91376436,173.39,173.28,13.91376436]
[1729732411201,13.91376436,173.39,173.3,18.73376436]
[1729732411803,13.91376436,173.39,173.35,2.8869]
[1729732412108,3.4768,173.49,173.36,13.91376436]
[1729732412109,13.91376436,173.45,173.36,13.91376436]
[1729732412317,13.91376436,173.45,173.4,2.8861]
[1729732412606,13.91376436,173.45,173.36,13.91376436]
[1729732413009,7.7053,173.46,173.41,2.886]
[1729732413204,21.61906436,173.46,173.41,2.886]
[1729732413400,13.91376436,173.46,173.36,15.10006436]
[1729732413596,13.91376436,173.51,173.43,2.8856]
[1729732413911,13.91376436,173.51,173.41,4.82]
[1729732414104,13.91376436,173.47,173.39,2.8863]
[1729732414299,13.91376436,173.45,173.36,1.1863]
[1729732414905,18.73376436,173.47,173.42,2.8858]
[1729732415905,18.73376436,173.47,173.37,13.91376436]
[1729732416111,13.91376436,173.45,173.37,13.91376436]
[1729732416799,13.91376436,173.45,173.41,2.886]
[1729732417003,13.91376436,173.43,173.35,2.5254]
[1729732417215,4.82,173.42,173.35,2.5254]
[1729732417413,13.91376436,173.41,173.31,13.91376436]
[1729732417709,13.91376436,173.41,173.3,2.5189]
[1729732417710,2.8864,173.39,173.3,2.5189]
[1729732417910,4.82,173.38,173.3,2.5189]
[1729732420805,16.79976436,173.41,173.32,2.8875]
[1729732421010,4.82,173.4,173.3,2.5189]
[1729732421513,4.82,173.4,173.34,2.887]
[1729732421715,4.82,173.4,173.3,2.5189]
[1729732422108,4.82,173.4,173.33,2.8874]
[1729732422308,4.82,173.4,173.3,2.5189]
[1729732423113,7.7063,173.4,173.3,2.5189]
[1729732423312,13.91376436,173.38,173.3,2.5189]
[1729732423718,13.91376436,173.36,173.25,13.91376436]
[1729732423907,13.91376436,173.36,173.31,2.8877]
[1729732423908,4.82,173.35,173.31,2.8877]
[1729732424217,7.707,173.35,173.25,13.91376436]
[1729732424416,7.707,173.35,173.29,2.8879]
[1729732424614,7.707,173.35,173.25,13.91376436]
[1729732424615,2.887,173.35,173.25,13.91376436]
[1729732424811,4.82,173.34,173.25,13.91376436]
[1729732426510,4.82,173.34,173.29,2.8879]
[1729732427124,18.73376436,173.34,173.27,2.8883]
[1729732427421,18.73376436,173.34,173.2,4.82]
[1729732427422,13.91376436,173.31,173.2,4.82]
[1729732427615,4.82,173.3,173.21,1.44449256]
[1729732427817,4.82,173.3,173.22,13.91376436]
[1729732428021,4.88,173.33,173.26,13.91376436]
[1729732428324,4.88,173.33,173.28,2.8882]
[1729732428719,4.88,173.33,173.3,2.8878]
[1729732428914,2.1942,173.38,173.3,13.91376436]
[1729732428915,4.88,173.35,173.3,13.91376436]
[1729732429123,13.91376436,173.43,173.33,13.91376436]
[1729732429325,2.886,173.42,173.36,2.8869]
[1729732429531,7.766,173.42,173.36,2.8869]
[1729732430127,7.766,173.42,173.37,2.8867]
[1729732430619,2.8861,173.41,173.36,2.8868]
[1729732432519,2.8861,173.41,173.28,4.88]
[1729732432520,2.8864,173.39,173.3,13.91376436]
[1729732432820,4.88,173.38,173.3,13.91376436]
[1729732433019,4.88,173.38,173.33,2.8872]
[1729732433231,7.7666,173.38,173.33,2.8872]
[1729732433413,4.88,173.38,173.33,2.8872]
[1729732433615,18.79376436,173.38,173.33,2.8872]
[1729732434123,18.79376436,173.38,173.28,13.91376436]
[1729732434321,13.91376436,173.34,173.24,1.44431452]
[1729732434522,2.1931,173.37,173.27,13.91376436]
[1729732434727,4.88,173.36,173.27,13.91376436]
[1729732434925,4.88,173.36,173.33,2.8873]
[1729732435924,4.88,173.36,173.27,13.91376436]
[1729732437322,13.91376436,173.35,173.27,13.91376436]
[1729732437527,13.91376436,173.35,173.31,2.8876]
[1729732437727,13.91376436,173.35,173.27,13.91376436]
[1729732438230,4.88,173.36,173.33,2.8872]
[1729732439630,4.88,173.36,173.29,13.91376436]
[1729732439827,2.8864,173.39,173.29,13.91376436]
[1729732440032,4.88,173.38,173.31,13.91376436]
[1729732440623,4.88,173.38,173.32,1.2656]
[1729732440828,4.88,173.38,173.35,2.8869]
[1729732441629,4.88,173.39,173.35,2.8869]
[1729732442028,4.88,173.39,173.32,1.2656]
[1729732442533,4.88,173.39,173.34,2.887]
[1729732442534,7.7665,173.39,173.34,2.887]
[1729732443323,4.88,173.39,173.33,13.91376436]
[1729732443529,2.2188,173.44,173.35,13.91376436]
[1729732443729,4.88,173.42,173.35,13.91376436]
[1729732443924,62.32,173.45,173.35,13.91376436]
[1729732444139,62.32,173.45,173.38,13.91376436]
[1729732444140,4.88,173.45,173.38,13.91376436]
[1729732444528,4.88,173.45,173.41,2.8859]
[1729732444727,4.88,173.45,173.38,13.91376436]
[1729732444930,4.88,173.46,173.38,13.91376436]
[1729732445129,4.88,173.46,173.42,2.8857]
[1729732445641,4.88,173.46,173.43,2.8856]
[1729732446847,18.79376436,173.46,173.43,2.8856]
[1729732448247,21.67906436,173.46,173.41,2.8859]
[1729732448531,21.67906436,173.46,173.34,4.88]
[1729732448532,13.91376436,173.42,173.34,4.88]
[1729732448738,13.91376436,173.39,173.34,4.88]
[1729732448940,13.91376436,173.39,173.33,2.4124]
[1729732449144,13.91376436,173.39,173.34,1.44370622]
[1729732449332,13.91376436,173.39,173.38,2.8864]
[1729732450037,13.91376436,173.39,173.36,2.8867]
[1729732450628,13.91376436,173.38,173.34,2.8872]
[1729732451630,13.91376436,173.38,173.35,2.887]
[1729732453531,18.79376436,173.38,173.27,15.13356436]
[1729732453739,18.79376436,173.38,173.34,2.8872]
[1729732454337,13.91376436,173.36,173.32,2.8875]
[1729732454542,13.91376436,173.33,173.28,1.2223]
[1729732456032,13.91376436,173.33,173.28,4.1104]
[1729732456236,13.91376436,173.31,173.2,13.91376436]
[1729732456430,13.91376436,173.31,173.23,1.1918]
[1729732456639,4.88,173.34,173.26,13.91376436]
[1729732456844,4.88,173.34,173.27,1.4442868]
[1729732457149,4.88,173.34,173.26,13.91376436]
[1729732457333,4.88,173.34,173.29,2.8879]
[1729732461544,2.2885,173.4,173.31,2.8877]
[1729732461545,13.91376436,173.38,173.31,2.8877]
[1729732461750,4.78,173.38,173.31,13.91376436]
[1729732461947,4.78,173.38,173.29,15.16866436]
[1729732462148,2.8872,173.34,173.3,1.44403415]
[1729732462448,13.91376436,173.36,173.29,1.2549]
[1729732462847,2.8868,173.37,173.31,2.8877]
[1729732463259,18.69376436,173.38,173.31,2.8877]
[1729732464244,2.8869,173.36,173.31,2.8877]
[1729732465248,18.69376436,173.38,173.29,1.2549]
[1729732465746,18.69376436,173.38,173.3,2.70145179]
[1729732465952,18.69376436,173.38,173.3,1.2574]
[1729732466141,18.69376436,173.38,173.33,2.8872]
[1729732468246,21.58036436,173.38,173.33,2.8872]
[1729732468442,13.91376436,173.36,173.31,2.8876]
[1729732468656,16.80066436,173.36,173.28,1.44418275]
[1729732468842,13.91376436,173.36,173.27,1.2101]
[1729732469044,13.91376436,173.36,173.28,1.44412874]
[1729732469239,21.58036436,173.38,173.29,1.44412874]
[1729732469439,21.58036436,173.38,173.3,1.44409069]
[1729732469440,13.91376436,173.38,173.3,1.44409069]
[1729732469652,13.91376436,173.38,173.28,13.91376436]
[1729732469653,18.69376436,173.38,173.31,1.44409069]
[1729732469950,4.78,173.39,173.3,13.91376436]
[1729732470153,4.78,173.39,173.31,1.44394663]
[1729732470352,4.78,173.39,173.35,2.8869]
[1729732470539,4.78,173.39,173.31,1.44392708]
[1729732470852,4.78,173.39,173.32,1.44392708]
[1729732471147,4.78,173.39,173.3,13.91376436]
[1729732471348,4.78,173.39,173.31,1.44392109]
[1729732471653,4.78,173.39,173.32,1.44392109]
[1729732471855,13.91376436,173.38,173.3,13.91376436]
[1729732472059,13.91376436,173.38,173.31,1.44396241]
[1729732472244,13.91376436,173.38,173.27,15.12386436]
[1729732472245,13.91376436,173.38,173.28,4.78]
[1729732472451,13.91376436,173.38,173.29,1.44402371]
[1729732472753,13.91376436,173.38,173.3,1.44402371]
[1729732472953,13.91376436,173.38,173.31,1.44402371]
[1729732473141,13.91376436,173.38,173.28,4.78]
[1729732473142,16.80036436,173.38,173.28,4.78]
[1729732473342,13.91376436,173.38,173.29,1.44402388]
[1729732473551,13.91376436,173.38,173.3,1.44402388]
[1729732473749,13.91376436,173.38,173.31,1.44402388]
[1729732473952,13.91376436,173.38,173.28,4.78]
[1729732474255,13.91376436,173.38,173.34,2.8872]
[1729732475860,16.80046436,173.38,173.33,2.8873]
[1729732476059,13.91376436,173.36,173.33,2.8873]
[1729732476352,13.91376436,173.36,173.29,1.44400915]
[1729732476558,13.91376436,173.36,173.28,4.78]
[1729732476559,13.91376436,173.36,173.34,2.8871]
[1729732481659,13.91376436,173.37,173.34,2.8871]
[1729732482251,2.8865,173.38,173.34,2.8871]
[1729732482450,13.91376436,173.37,173.34,2.8871]
[1729732483255,15.16216436,173.41,173.31,13.91376436]
[1729732483460,4.78,173.4,173.31,13.91376436]
[1729732484564,4.78,173.4,173.37,2.8867]
[1729732485262,16.80026436,173.39,173.29,4.78]
[1729732485464,13.91376436,173.37,173.29,4.78]
[1729732485865,13.91376436,173.37,173.33,2.8873]
[1729732486962,13.91376436,173.37,173.29,4.78]
[1729732487264,13.91376436,173.37,173.34,2.8872]
[1729732487560,13.91376436,173.37,173.29,4.78]
[1729732488156,4.78,173.4,173.37,2.8866]
[1729732488362,13.91376436,173.39,173.37,2.8866]
[1729732488762,4.78,173.4,173.37,2.8866]
[1729732489568,79.11966436,173.42,173.37,2.8866]
[1729732489769,4.74,173.4,173.37,2.8866]
[1729732491070,4.74,173.4,173.32,13.91376436]
[1729732491071,13.91376436,173.39,173.21,62.34]
[1729732491264,13.91376436,173.36,173.27,2.65975684]
[1729732491470,4.74,173.4,173.28,15.3577212]
[1729732491772,18.65376436,173.4,173.29,1.44395684]
[1729732491960,21.53996436,173.4,173.33,2.8874]
[1729732492157,21.53996436,173.4,173.28,18.65376436]
[1729732492475,13.91376436,173.38,173.29,1.44390651]
[1729732492658,16.80036436,173.38,173.28,18.65376436]
[1729732492861,13.91376436,173.38,173.29,1.44403352]
[1729732493062,13.91376436,173.38,173.3,1.44403352]
[1729732493271,13.91376436,173.38,173.31,1.44403352]
[1729732493565,13.91376436,173.38,173.28,18.65376436]
[1729732493867,13.91376436,173.38,173.29,1.44400974]
[1729732494071,13.91376436,173.38,173.33,2.8873]
[1729732494859,4.74,173.4,173.3,2.8878]
[1729732494860,2.8871,173.35,173.3,2.8878]
[1729732495167,13.91376436,173.34,173.27,1.2158]
[1729732495368,13.91376436,173.34,173.29,2.8879]
[1729732495563,13.91376436,173.34,173.3,1.44413976]
[1729732495764,13.91376436,173.34,173.27,1.2158]
[1729732495971,13.91376436,173.34,173.28,1.44413626]
[1729732496173,13.91376436,173.34,173.3,2.8878]
[1729732496468,16.80096436,173.34,173.27,1.2158]
[1729732496970,16.80096436,173.34,173.28,1.44415606]
[1729732497170,16.80096436,173.34,173.29,1.44415606]
[1729732497369,16.80096436,173.34,173.29,2.888]
[1729732498375,13.91376436,173.34,173.29,2.888]
[1729732498675,13.91376436,173.34,173.3,1.44414977]
[1729732498974,13.91376436,173.34,173.29,2.888]
[1729732499170,13.91376436,173.34,173.3,1.44414844]
[1729732499373,13.91376436,173.34,173.29,2.888]
[1729732499768,16.80106436,173.34,173.29,2.888]
[1729732500069,13.91376436,173.34,173.29,2.888]
[1729732500268,4.74,173.35,173.23,4.74]
[1729732500269,13.91376436,173.31,173.23,4.74]
[1729732500570,13.91376436,173.31,173.24,1.44416636]
[1729732500787,18.65376436,173.31,173.27,2.8883]
[1729732501075,2.2052,173.41,173.28,1.44416636]
[1729732501376,2.2052,173.41,173.33,2.8872]
[1729732501377,16.80026436,173.39,173.33,2.8872]
[1729732501965,13.91376436,173.39,173.33,2.8872]
[1729732502362,13.91376436,173.39,173.32,2.8875]
[1729732502969,2.8867,173.37,173.33,2.8874]
[1729732503776,2.2052,173.41,173.3,13.91376436]
[1729732503979,18.65376436,173.4,173.31,1.44393139]
[1729732504279,18.65376436,173.4,173.32,1.44393139]
[1729732504478,18.65376436,173.4,173.33,1.44393139]
[1729732504681,18.65376436,173.4,173.3,13.91376436]
[1729732504878,2.8866,173.38,173.31,1.44390612]
[1729732505076,2.8866,173.38,173.32,1.44390612]
[1729732505380,2.8866,173.38,173.28,3.6611]
[1729732505381,13.91376436,173.42,173.34,13.91376436]
[1729732505682,4.74,173.43,173.35,3.85130612]
[1729732505882,4.74,173.43,173.4,2.886]
[1729732506067,4.74,173.43,173.37,1.44390612]
[1729732506268,4.74,173.43,173.35,3.6966]
[1729732506478,4.74,173.43,173.36,1.44358286]
[1729732506677,4.74,173.43,173.37,1.44358286]
[1729732506876,4.74,173.43,173.35,3.6966]
[1729732507068,4.74,173.43,173.33,4.74]
[1729732507069,13.91376436,173.39,173.36,1.44356859]
[1729732507379,13.91376436,173.37,173.3,4.74]
[1729732507585,13.91376436,173.37,173.34,2.8871]
[1729732507880,4.74,173.39,173.35,1.44370816]
[1729732508081,13.91376436,173.36,173.28,4.74]
[1729732508308,13.91376436,173.36,173.29,1.44390927]
[1729732508309,4.74,173.35,173.29,1.44390927]
[1729732508482,13.91376436,173.33,173.3,1.44390927]
[1729732508674,13.91376436,173.33,173.31,1.44390927]
[1729732508873,13.91376436,173.33,173.26,3.6283]
[1729732509076,13.91376436,173.33,173.27,1.4440897]
[1729732509282,13.91376436,173.33,173.28,4.3320897]
[1729732509581,13.91376436,173.33,173.29,1.4440897]
[1729732509779,13.91376436,173.33,173.26,3.6283]
[1729732509983,13.91376436,173.33,173.27,1.44415285]
[1729732510179,13.91376436,173.33,173.26,3.6283]
[1729732510180,13.91376436,173.31,173.28,1.44415285]
[1729732510384,4.74,173.35,173.23,18.65376436]
[1729732510385,13.91376436,173.33,173.23,18.65376436]
[1729732510589,13.91376436,173.33,173.24,1.44415392]
[1729732510781,13.91376436,173.33,173.27,2.8883]
[1729732510983,13.91376436,173.33,173.28,1.44415392]
[1729732511283,13.91376436,173.33,173.3,2.8878]
[1729732511485,13.91376436,173.33,173.26,1.1978]
[1729732511681,13.91376436,173.33,173.27,1.44410324]
[1729732511988,13.91376436,173.33,173.28,1.44410324]
[1729732512178,13.91376436,173.33,173.29,4.33200324]
[1729732512383,13.91376436,173.31,173.3,1.44410324]
[1729732512692,13.91376436,173.31,173.28,2.8881]
[1729732512882,13.91376436,173.31,173.26,1.1978]
[1729732513083,13.91376436,173.31,173.27,1.44416156]
[1729732513290,13.91376436,173.31,173.28,4.33216156]
[1729732513588,13.91376436,173.33,173.26,1.1978]
[1729732513783,13.91376436,173.33,173.27,1.44414727]
[1729732513985,13.91376436,173.33,173.28,4.33214727]
[1729732514186,13.91376436,173.33,173.29,1.44414727]
[1729732514387,13.91376436,173.33,173.26,1.1978]
[1729732514590,13.91376436,173.33,173.27,1.44414229]
[1729732514789,13.91376436,173.33,173.28,1.44414229]
[1729732514989,13.91376436,173.33,173.29,1.44414229]
[1729732515192,13.91376436,173.33,173.3,1.44414229]
[1729732515495,13.91376436,173.33,173.26,1.1978]
[1729732515692,13.91376436,173.33,173.27,1.44414838]
[1729732515898,13.91376436,173.33,173.28,1.44414838]
[1729732516103,13.91376436,173.33,173.29,1.44414838]
[1729732516295,13.91376436,173.33,173.3,1.4441295]
[1729732516496,13.91376436,173.33,173.29,2.888]
[1729732516696,13.91376436,173.33,173.3,1.44413621]
[1729732516897,13.91376436,173.33,173.29,2.888]
[1729732517205,13.91376436,173.33,173.3,1.44413585]
[1729732517399,13.91376436,173.33,173.29,2.8882]
[1729732517593,13.91376436,173.33,173.3,1.44414229]
[1729732517795,13.91376436,173.33,173.29,2.8882]
[1729732518095,13.91376436,173.33,173.3,1.44413621]
[1729732518294,13.91376436,173.33,173.29,2.8882]
[1729732518498,13.91376436,173.33,173.3,1.44414229]
[1729732518795,13.91376436,173.33,173.29,2.8882]
[1729732518992,13.91376436,173.31,173.3,1.44413621]
[1729732519205,18.65376436,173.31,173.27,2.8885]
[1729732519409,13.91376436,173.29,173.28,1.44416235]
[1729732519607,13.91376436,173.29,173.15,62.34]
[1729732519804,13.91376436,173.26,173.17,4.74]
[1729732520194,13.91376436,173.26,173.16,3.6014]
[1729732520405,4.74,173.27,173.19,13.91376436]
[1729732520596,4.74,173.27,173.25,2.8888]
[1729732520998,4.74,173.27,173.19,13.91376436]
[1729732521407,4.74,173.27,173.24,2.889]
[1729732521804,4.74,173.27,173.19,13.91376436]
[1729732523402,4.74,173.27,173.25,2.8889]
[1729732523812,4.74,173.27,173.19,13.91376436]
[1729732524007,4.74,173.27,173.17,13.91376436]
[1729732524209,4.74,173.27,173.19,13.91376436]
[1729732524405,4.74,173.27,173.25,2.8889]
[1729732525710,13.91376436,173.31,173.21,13.91376436]
[1729732525904,4.74,173.3,173.27,2.8886]
[1729732526104,4.74,173.3,173.21,13.91376436]
[1729732526504,4.74,173.3,173.2,4.74]
[1729732526911,13.91376436,173.28,173.24,2.889]
[1729732527204,1.2149,173.36,173.19,13.91376436]
[1729732527407,16.80156436,173.32,173.27,2.8886]
[1729732527609,4.74,173.31,173.21,13.91376436]
[1729732528313,13.91376436,173.34,173.23,13.91376436]
[1729732528615,4.74,173.31,173.24,2.3997]
[1729732530111,4.74,173.31,173.28,2.8884]
[1729732531421,4.74,173.32,173.25,13.91376436]
[1729732531610,4.74,173.32,173.26,1.4441973]
[1729732531815,4.74,173.32,173.27,1.4441973]
[1729732532118,18.01596436,173.36,173.28,1.4441973]
[1729732532320,4.74,173.35,173.29,1.4441973]
[1729732532514,16.80066436,173.38,173.3,1.4441973]
[1729732532714,4.74,173.37,173.31,1.4441973]
[1729732532912,4.74,173.37,173.27,13.91376436]
[1729732533121,4.74,173.37,173.32,2.8877]
[1729732533513,7.627,173.37,173.32,2.8877]
[1729732533912,7.627,173.37,173.26,4.74]
[1729732533913,13.91376436,173.35,173.31,2.888]
[1729732534718,13.91376436,173.35,173.32,2.8878]
[1729732534918,13.91376436,173.35,173.26,4.74]
[1729732535123,13.91376436,173.35,173.27,1.44410136]
[1729732535325,13.91376436,173.35,173.31,2.8879]
[1729732535718,13.91376436,173.35,173.24,2.3997]
[1729732535719,13.91376436,173.33,173.24,2.3997]
[1729732535915,13.91376436,173.3,173.28,2.8885]
[1729732536117,4.74,173.32,173.29,1.44418938]
[1729732536324,4.74,173.32,173.24,2.3997]
[1729732536625,4.74,173.32,173.29,2.8883]
[1729732537427,4.74,173.32,173.28,2.8885]
[1729732537623,4.74,173.32,173.29,1.44418061]
[1729732537924,4.74,173.32,173.28,2.8885]
[1729732538124,4.74,173.32,173.29,1.44414838]
[1729732538422,4.74,173.32,173.28,2.8885]
[1729732538624,4.74,173.32,173.29,1.44419125]
[1729732538822,4.74,173.32,173.28,2.8885]
[1729732539123,4.74,173.32,173.26,2.8887]
[1729732539325,4.74,173.32,173.24,2.3997]
[1729732539326,4.74,173.32,173.27,1.44419336]
[1729732539624,4.74,173.32,173.28,1.44419336]
[1729732539821,3.4714,173.4,173.29,1.44420031]
[1729732540025,13.91376436,173.37,173.3,1.44420031]
[1729732540220,13.91376436,173.37,173.31,1.44420031]
[1729732540526,13.91376436,173.37,173.32,2.8877]
[1729732541627,16.80086436,173.37,173.32,2.8877]
[1729732542021,13.91376436,173.35,173.32,2.8877]
[1729732542828,4.74,173.43,173.33,1.44390553]
[1729732543123,13.91376436,173.42,173.34,1.44390553]
[1729732543313,13.91376436,173.42,173.32,13.91376436]
[1729732544021,16.79996436,173.42,173.32,13.91376436]
[1729732544328,13.91376436,173.42,173.32,13.91376436]
[1729732544529,13.91376436,173.42,173.38,2.8867]
[1729732546224,16.79996436,173.42,173.38,2.8867]
[1729732546829,2.95045255,173.46,173.34,1.44375328]
[1729732547123,13.91376436,173.41,173.35,1.44372235]
[1729732547330,13.91376436,173.39,173.31,8.5048]
[1729732547530,13.91376436,173.39,173.32,1.44373059]
[1729732547729,4.74,173.42,173.33,1.44373059]
[1729732547929,13.91376436,173.41,173.34,1.44375112]
[1729732548227,13.91376436,173.41,173.35,1.44375112]
[1729732548417,4.74,173.42,173.32,13.91376436]
[1729732548627,4.74,173.42,173.33,1.4436885]
[1729732548824,4.74,173.42,173.4,2.8863]
[1729732549335,4.74,173.42,173.31,8.5048]
[1729732549336,2.8853,173.48,173.42,2.8862]
[1729732549529,13.91376436,173.46,173.35,6.18366996]
[1729732549828,13.91376436,173.46,173.36,1.44366996]
[1729732550023,13.91376436,173.46,173.42,2.886]
[1729732550218,2.2399,173.49,173.36,13.91376436]
[1729732550424,564.0,173.73,173.41,13.91376436]
[1729732550425,17.33,173.62,173.41,13.91376436]
[1729732550628,564.0,173.73,173.41,13.91376436]
[1729732550629,18.65376436,173.51,173.48,2.885]
[1729732551439,4.74,173.53,173.42,3.7369]
[1729732551639,18.65376436,173.53,173.43,15.35681621]
[1729732551845,18.65376436,173.53,173.44,4.74]
[1729732552263,13.91376436,173.53,173.44,4.74]
[1729732552831,13.91376436,173.53,173.5,2.8848]
[1729732553534,13.91376436,173.51,173.48,2.8851]
[1729732553738,13.91376436,173.51,173.44,4.74]
[1729732555327,13.91376436,173.51,173.5,2.8848]
[1729732556223,13.91376436,173.51,173.48,2.8852]
[1729732556428,13.91376436,173.49,173.44,4.74]
[1729732556630,13.91376436,173.49,173.43,4.74]
[1729732556938,13.91376436,173.49,173.47,2.8852]
[1729732557841,13.91376436,173.49,173.42,3.7369]
[1729732558041,13.91376436,173.47,173.42,3.7369]
[1729732558333,13.91376436,173.47,173.43,2.8858]
[1729732558540,13.91376436,173.47,173.42,3.7369]
[1729732558929,4.74,173.51,173.36,1.44317054]
[1729732558930,13.91376436,173.44,173.36,1.44317054]
[1729732559138,13.91376436,173.44,173.36,5.9429]
[1729732559339,13.91376436,173.44,173.37,2.499]
[1729732559835,13.91376436,173.44,173.41,2.8862]
[1729732560040,13.91376436,173.44,173.37,2.499]
[1729732561234,13.91376436,173.44,173.41,2.8862]
[1729732561674,2.8853,173.47,173.41,2.8862]
[1729732561942,13.91376436,173.45,173.41,2.8862]
[1729732562336,13.91376436,173.47,173.43,2.8858]
[1729732562545,13.91376436,173.58,173.4,4.74]
[1729732562729,13.91376436,173.49,173.4,18.65376436]
[1729732563428,13.91376436,173.49,173.47,2.8853]
[1729732563628,13.91376436,173.49,173.4,18.65376436]
[1729732563827,13.91376436,173.49,173.42,2.886]
[1729732564033,13.91376436,173.49,173.4,4.74]
[1729732564538,16.79876436,173.49,173.4,4.74]
[1729732565634,13.91376436,173.49,173.4,4.74]
[1729732565834,13.91376436,173.49,173.47,2.8853]
[1729732566037,4.74,173.53,173.47,2.8853]
[1729732566240,13.91376436,173.5,173.47,2.8853]
[1729732567546,13.91376436,173.5,173.49,2.885]
[1729732567937,0.4995,173.61,173.45,3.7232]
[1729732567938,13.91376436,173.52,173.45,3.7232]
[1729732568159,13.91376436,173.52,173.51,2.8847]
[1729732568450,13.91376436,173.52,173.45,3.7232]
[1729732568637,13.91376436,173.5,173.45,3.7232]
[1729732569248,4.74,173.56,173.45,3.7232]
[1729732569249,13.91376436,173.53,173.45,3.7232]
[1729732570141,13.91376436,173.51,173.45,2.4542]
[1729732570351,13.91376436,173.51,173.45,1.2219]
[1729732570544,2.8848,173.5,173.45,2.8856]
[1729732570742,13.91376436,173.51,173.45,2.8856]
[1729732570934,4.74,173.52,173.41,4.74]
[1729732570935,13.91376436,173.48,173.41,4.74]
[1729732571141,13.91376436,173.48,173.45,2.8856]
[1729732571457,13.91376436,173.51,173.41,18.65376436]
[1729732571945,13.91376436,173.51,173.41,4.74]
[1729732572743,4.74,173.52,173.42,13.91376436]
[1729732573149,18.65376436,173.52,173.48,2.8851]
[1729732573854,18.65376436,173.52,173.49,2.8849]
[1729732574144,13.91376436,173.52,173.49,2.8849]
[1729732574347,13.91376436,173.55,173.45,18.65376436]
[1729732574538,13.91376436,173.55,173.46,2.3656]
[1729732575142,13.91376436,173.55,173.51,2.8845]
[1729732575950,13.91376436,173.55,173.46,2.3656]
[1729732576550,16.79786436,173.55,173.49,2.8848]
[1729732576853,16.79786436,173.55,173.46,2.3656]
[1729732577348,13.91376436,173.55,173.46,2.3656]
[1729732577949,13.91376436,173.55,173.5,2.8847]
[1729732578551,16.79776436,173.55,173.5,2.8847]
[1729732578949,16.79776436,173.55,173.46,2.3656]
[1729732579252,16.79776436,173.55,173.51,2.8846]
[1729732579565,13.91376436,173.55,173.46,2.3656]
[1729732579851,13.91376436,173.55,173.5,2.8848]
[1729732580045,13.91376436,173.55,173.46,2.3656]
[1729732580451,13.91376436,173.5,173.46,2.3656]
[1729732580639,13.91376436,173.5,173.4,15.15166436]
[1729732580640,13.91376436,173.5,173.43,4.72]
[1729732581050,13.91376436,173.5,173.47,2.8853]
[1729732581242,13.91376436,173.5,173.43,4.72]
[1729732581647,13.91376436,173.5,173.47,2.8852]
[1729732581849,13.91376436,173.5,173.43,4.72]
[1729732583361,13.91376436,173.5,173.48,2.8851]